fUSD/lending_fUSD_20250111
["ID","MTS","AMOUNT","RATE_DAILY","PERIOD"]
[348559490,1736619059573,-500.0,0.00010441,2]
[348559491,1736619059583,-500.0,0.00010715,2]
[348559492,1736619059592,-185.93286395,0.00010813,2]
[348559493,1736619059602,-488.18557031,0.00010813,2]
[348559494,1736619059614,-308.53495982,0.00010813,2]
[348559495,1736619059623,-500.0,0.00010814,2]
[348559496,1736619059632,-500.0,0.00010989,2]
[348559497,1736619059641,-500.0,0.00011088,2]
[348559498,1736619059652,-1640.16485751,0.00011099,2]
[348559499,1736619059662,-28180.5083296,0.00011099,2]
[348559500,1736619059677,-52.78900938,0.00011099,2]
[348559501,1736619059687,-220.2400542,0.00011099,2]
[348559502,1736619059701,-28013.05728478,0.00011099,2]
[348559503,1736619059714,-7778.34137212,0.00011119,2]
[348559504,1736619059730,-3381.22978117,0.00011119,2]
[348559505,1736619059945,-591.59612826,9.892e-05,2]
[348559506,1736619059954,-247.09280355,9.892e-05,2]
[348559507,1736619059972,-252.90719645,9.892e-05,2]
[348559508,1736619059981,-500.0,9.893e-05,2]
[348559509,1736619059991,-500.0,0.00010166,2]
[348559510,1736619060001,-500.0,0.00010167,2]
[348559511,1736619060010,-500.0,0.00010266,2]
[348559512,1736619060020,-500.0,0.0001044,2]
[348559513,1736619060029,-500.0,0.00010441,2]
[348559514,1736619060039,-500.0,0.00010714,2]
[348559515,1736619060048,-500.0,0.00010715,2]
[348559516,1736619060057,-478.24,0.00010989,2]
[348559517,1736619060067,-2473.44483757,0.00011119,2]
[348559518,1736619060092,-500.0,0.00010988,2]
[348559519,1736619060102,-14600.28134812,0.00011119,2]
[348559520,1736619060112,-242.11776358,0.00011141,2]
[348559521,1736619060121,-376.64,0.00011244,2]
[348559522,1736619060131,-242.11776358,0.00011245,2]
[348559523,1736619060141,-500.0,0.00011262,2]
[348559524,1736619060150,-866.93,0.00011262,2]
[348559525,1736619060160,-500.0,0.00011263,2]
[348559526,1736619060169,-531.67,0.00011263,2]
[348559527,1736619060179,-500.0,0.00011263,2]
[348559528,1736619060188,-500.0,0.00011263,2]
[348559529,1736619060198,-500.0,0.00011263,2]
[348559530,1736619060207,-500.0,0.00011263,2]
[348559531,1736619060218,-500.0,0.00011263,2]
[348559532,1736619060228,-500.0,0.00011263,2]
[348559533,1736619060238,-556.85,0.00011263,2]
[348559534,1736619060249,-502.87,0.00011263,2]
[348559535,1736619060258,-500.0,0.00011263,2]
[348559536,1736619060267,-682.71,0.00011263,2]
[348559537,1736619060277,-601.95,0.00011263,2]
[348559538,1736619060287,-500.0,0.00011263,2]
[348559539,1736619060297,-261.76,0.00011263,2]
[348559540,1736619060307,-637.68,0.00011263,2]
[348559541,1736619060316,-803.95,0.00011263,2]
[348559542,1736619060326,-748.35,0.00011263,2]
[348559543,1736619060336,-648.24,0.00011263,2]
[348559544,1736619060346,-500.0,0.00011263,2]
[348559545,1736619060355,-779.36,0.00011263,2]
[348559546,1736619060365,-500.0,0.00011263,2]
[348559547,1736619060375,-500.0,0.00011263,2]
[348559548,1736619060384,-500.0,0.00011263,2]
[348559549,1736619060394,-500.0,0.00011263,2]
[348559550,1736619060403,-500.0,0.00011263,2]
[348559551,1736619060413,-460.48,0.00011263,2]
[348559552,1736619060422,-500.0,0.00011263,2]
[348559553,1736619060432,-500.0,0.00011263,2]
[348559554,1736619060441,-500.0,0.00011263,2]
[348559555,1736619060451,-500.0,0.00011263,2]
[348559556,1736619060461,-500.0,0.00011263,2]
[348559557,1736619060471,-500.0,0.00011263,2]
[348559558,1736619060480,-500.0,0.00011263,2]
[348559559,1736619060490,-500.0,0.00011263,2]
[348559560,1736619060499,-500.0,0.00011263,2]
[348559561,1736619060508,-648.37,0.00011263,2]
[348559562,1736619060517,-500.0,0.00011263,2]
[348559563,1736619060527,-2483.68,0.00011263,2]
[348559564,1736619060536,-684.3,0.00011263,2]
[348559565,1736619060546,-1324.09,0.00011263,2]
[348559566,1736619060555,-500.0,0.00011263,2]
[348559567,1736619060564,-2078.45,0.00011263,2]
[348559568,1736619060574,-500.0,0.00011263,2]
[348559569,1736619060583,-5888.52,0.00011263,2]
[348559570,1736619060592,-500.0,0.00011263,2]
[348559571,1736619060602,-500.0,0.00011263,2]
[348559572,1736619060612,-660.06,0.00011263,2]
[348559573,1736619060621,-151.442323,0.00011263,2]
[348559574,1736619060630,-500.0,0.00011263,2]
[348559575,1736619060639,-688.64,0.00011263,2]
[348559576,1736619060649,-500.0,0.00011263,2]
[348559577,1736619060658,-1095.26,0.00011263,2]
[348559578,1736619060671,-500.0,0.00011263,2]
[348559579,1736619060681,-1093.77,0.00011263,2]
[348559580,1736619060690,-500.0,0.00011263,2]
[348559581,1736619060700,-500.0,0.00011263,2]
[348559582,1736619060711,-2839.21,0.00011263,2]
[348559583,1736619060720,-819.35,0.00011263,2]
[348559584,1736619060730,-500.0,0.00011263,2]
[348559585,1736619060739,-528.36,0.00011263,2]
[348559586,1736619060749,-500.0,0.00011263,2]
[348559587,1736619060759,-500.0,0.00011263,2]
[348559588,1736619060768,-2722.44,0.00011263,2]
[348559589,1736619060777,-3422.51,0.00011263,2]
[348559590,1736619060787,-521.17,0.00011263,2]
[348559591,1736619060796,-2853.6,0.00011263,2]
[348559592,1736619060807,-756.18,0.00011263,2]
[348559593,1736619060817,-500.0,0.00011263,2]
[348559594,1736619060827,-4668.96,0.00011263,2]
[348559595,1736619060836,-1489.31,0.00011263,2]
[348559596,1736619060846,-500.0,0.00011263,2]
[348559597,1736619060855,-1114.26,0.00011263,2]
[348559598,1736619060864,-500.0,0.00011263,2]
[348559599,1736619061063,-2806.0,0.00011263,2]
[348559600,1736619061072,-500.0,0.00011263,2]
[348559601,1736619061082,-500.0,0.00011263,2]
[348559602,1736619061092,-598.85,0.00011263,2]
[348559603,1736619061102,-500.0,0.00011263,2]
[348559604,1736619061113,-937.47,0.00011263,2]
[348559605,1736619061122,-503.9,0.00011263,2]
[348559606,1736619061131,-500.0,0.00011263,2]
[348559607,1736619061140,-1399.84,0.00011263,2]
[348559608,1736619061149,-500.0,0.00011263,2]
[348559609,1736619061159,-500.0,0.00011263,2]
[348559610,1736619061169,-3257.63,0.00011263,2]
[348559611,1736619061178,-500.0,0.00011263,2]
[348559612,1736619061188,-1522.45,0.00011263,2]
[348559613,1736619061197,-1746.42,0.00011263,2]
[348559614,1736619061207,-500.0,0.00011263,2]
[348559615,1736619061216,-500.0,0.00011263,2]
[348559616,1736619061225,-500.0,0.00011263,2]
[348559617,1736619061234,-1946.42,0.00011263,2]
[348559618,1736619061243,-500.0,0.00011263,2]
[348559619,1736619061253,-967.19,0.00011263,2]
[348559620,1736619061262,-500.0,0.00011263,2]
[348559621,1736619061271,-500.0,0.00011263,2]
[348559622,1736619061280,-500.0,0.00011263,2]
[348559623,1736619061289,-876.48,0.00011263,2]
[348559624,1736619061299,-500.0,0.00011263,2]
[348559625,1736619061309,-827.89,0.00011263,2]
[348559626,1736619061318,-1292.29,0.00011263,2]
[348559627,1736619061328,-1143.37,0.00011263,2]
[348559628,1736619061338,-500.0,0.00011263,2]
[348559629,1736619061347,-500.0,0.00011263,2]
[348559630,1736619061356,-500.0,0.00011263,2]
[348559631,1736619061367,-500.0,0.00011263,2]
[348559632,1736619061376,-29999.99,0.00011281,2]
[348559633,1736619061385,-150.67,0.00011316,2]
[348559634,1736619061394,-38867.0,0.00011342,2]
[348559635,1736619061403,-242.11776358,0.00011348,2]
[348559636,1736619061413,-500.0,0.00011362,2]
[348559637,1736619061423,-500.0,0.00011362,2]
[348559638,1736619061433,-585.60155725,0.00011362,2]
[348559639,1736619061443,-511.33,0.00011362,2]
[348559640,1736619061453,-500.0,0.00011362,2]
[348559641,1736619061465,-500.0,0.00011362,2]
[348559642,1736619061475,-500.0,0.00011362,2]
[348559643,1736619061485,-500.0,0.00011362,2]
[348559644,1736619061494,-500.0,0.00011362,2]
[348559645,1736619061504,-500.0,0.00011362,2]
[348559646,1736619061513,-500.0,0.00011362,2]
[348559647,1736619061522,-500.0,0.00011362,2]
[348559648,1736619061532,-500.0,0.00011362,2]
[348559649,1736619061541,-503.2,0.00011362,2]
[348559650,1736619061550,-500.0,0.00011362,2]
[348559651,1736619061560,-500.0,0.00011362,2]
[348559652,1736619061569,-309.28,0.00011362,2]
[348559653,1736619061578,-500.0,0.00011362,2]
[348559654,1736619061588,-500.0,0.00011362,2]
[348559655,1736619061597,-500.0,0.00011362,2]
[348559656,1736619061606,-500.0,0.00011362,2]
[348559657,1736619061615,-551.32,0.00011362,2]
[348559658,1736619061625,-500.0,0.00011362,2]
[348559659,1736619061634,-184.1,0.00011362,2]
[348559660,1736619061643,-1481.33,0.00011362,2]
[348559661,1736619061652,-500.0,0.00011362,2]
[348559662,1736619061662,-500.0,0.00011362,2]
[348559663,1736619061675,-500.0,0.00011362,2]
[348559664,1736619061685,-3066.26,0.00011362,2]
[348559665,1736619061694,-500.0,0.00011362,2]
[348559666,1736619061704,-574.39,0.00011362,2]
[348559667,1736619061714,-566.59492456,0.00011362,2]
[348559668,1736619061724,-500.0,0.00011362,2]
[348559669,1736619061735,-2302.27,0.00011362,2]
[348559670,1736619061746,-306.19,0.00011362,2]
[348559671,1736619061757,-504.14,0.00011362,2]
[348559672,1736619061767,-500.0,0.00011362,2]
[348559673,1736619061779,-1618.77,0.00011362,2]
[348559674,1736619061790,-500.0,0.00011362,2]
[348559675,1736619061800,-500.0,0.00011362,2]
[348559676,1736619061809,-500.0,0.00011362,2]
[348559677,1736619061819,-568.62,0.00011363,2]
[348559678,1736619061828,-500.0,0.00011363,2]
[348559679,1736619061838,-500.0,0.00011363,2]
[348559680,1736619061849,-500.0,0.00011363,2]
[348559681,1736619061859,-500.0,0.00011363,2]
[348559682,1736619061868,-494.74,0.00011363,2]
[348559683,1736619061878,-500.0,0.00011363,2]
[348559684,1736619061887,-538.4,0.00011363,2]
[348559685,1736619061898,-152.87,0.00011363,2]
[348559686,1736619061907,-500.0,0.00011363,2]
[348559687,1736619061916,-500.0,0.00011363,2]
[348559688,1736619061927,-500.0,0.00011363,2]
[348559689,1736619061936,-624.32864061,0.00011363,2]
[348559690,1736619061946,-500.0,0.00011363,2]
[348559691,1736619061956,-500.0,0.00011363,2]
[348559692,1736619061966,-500.0,0.00011363,2]
[348559693,1736619061976,-500.0,0.00011363,2]
[348559694,1736619061986,-507.75,0.00011363,2]
[348559695,1736619061996,-500.0,0.00011363,2]
[348559696,1736619062006,-500.0,0.00011363,2]
[348559697,1736619062016,-272.95,0.00011363,2]
[348559698,1736619062025,-500.0,0.00011363,2]
[348559699,1736619062035,-500.0,0.00011363,2]
[348559700,1736619062044,-326.12094248,0.00011363,2]
[348559701,1736619062054,-500.0,0.00011363,2]
[348559702,1736619062064,-500.0,0.00011363,2]
[348559703,1736619062073,-500.0,0.00011363,2]
[348559704,1736619062083,-515.37,0.00011363,2]
[348559705,1736619062092,-500.0,0.00011363,2]
[348559706,1736619062102,-500.0,0.00011363,2]
[348559707,1736619062113,-500.0,0.00011363,2]
[348559708,1736619062122,-500.0,0.00011363,2]
[348559709,1736619062132,-500.0,0.00011363,2]
[348559710,1736619062142,-811.58,0.00011363,2]
[348559711,1736619062152,-500.0,0.00011363,2]
[348559712,1736619062162,-500.0,0.00011363,2]
[348559713,1736619062172,-500.0,0.00011363,2]
[348559714,1736619062181,-500.0,0.00011363,2]
[348559715,1736619062191,-500.0,0.00011363,2]
[348559716,1736619062200,-500.0,0.00011363,2]
[348559717,1736619062210,-433.74211276,0.00011363,2]
[348559718,1736619062220,-500.0,0.00011363,2]
[348559719,1736619062229,-500.0,0.00011363,2]
[348559720,1736619062239,-500.0,0.00011363,2]
[348559721,1736619062248,-500.0,0.00011363,2]
[348559722,1736619062258,-635.89,0.00011363,2]
[348559723,1736619062269,-736.97,0.00011363,2]
[348559724,1736619062278,-500.0,0.00011363,2]
[348559725,1736619062288,-596.34,0.00011363,2]
[348559726,1736619062297,-500.0,0.00011363,2]
[348559727,1736619062307,-500.0,0.00011363,2]
[348559728,1736619062318,-500.0,0.00011363,2]
[348559729,1736619062328,-500.0,0.00011363,2]
[348559730,1736619062338,-500.0,0.00011363,2]
[348559731,1736619062347,-1370.69,0.00011364,2]
[348559732,1736619062356,-552.32,0.00011364,2]
[348559733,1736619062366,-905.32946816,0.00011364,2]
[348559734,1736619062380,-885.09053184,0.00011364,2]
[348559735,1736619062390,-2049.33,0.00011364,2]
[348559736,1736619062401,-1949.6,0.00011364,2]
[348559737,1736619062410,-3028.44,0.00011364,2]
[348559738,1736619062419,-870.98,0.00011364,2]
[348559739,1736619062428,-533.02,0.00011364,2]
[348559740,1736619062438,-1108.21,0.00011364,2]
[348559741,1736619062447,-1082.81,0.00011364,2]
[348559742,1736619062457,-1340.02,0.00011364,2]
[348559743,1736619062468,-1128.42,0.00011364,2]
[348559744,1736619062478,-2550.01,0.00011364,2]
[348559745,1736619062487,-1200.04,0.00011364,2]
[348559746,1736619062497,-2010.27,0.00011364,2]
[348559747,1736619062506,-1017.64,0.00011364,2]
[348559748,1736619062516,-1136.34,0.00011364,2]
[348559749,1736619062525,-614.0,0.00011364,2]
[348559750,1736619062535,-500.0,0.00011364,2]
[348559751,1736619062544,-626.91,0.00011364,2]
[348559752,1736619062554,-1365.31,0.00011364,2]
[348559753,1736619062565,-500.0,0.00011364,2]
[348559754,1736619062574,-1462.92,0.00011364,2]
[348559755,1736619062584,-2210.88,0.00011364,2]
[348559756,1736619062594,-667.74,0.00011364,2]
[348559757,1736619062603,-9460.76,0.00011364,2]
[348559758,1736619062612,-620.0,0.00011364,2]
[348559759,1736619062622,-500.0,0.00011364,2]
[348559760,1736619062632,-1300.77,0.00011364,2]
[348559761,1736619062641,-2164.11,0.00011364,2]
[348559762,1736619062650,-1025.3,0.00011364,2]
[348559763,1736619062660,-661.25,0.00011364,2]
[348559764,1736619062672,-745.18,0.00011364,2]
[348559765,1736619062682,-500.0,0.00011365,2]
[348559766,1736619062691,-500.0,0.00011365,2]
[348559767,1736619062700,-533.58,0.00011365,2]
[348559768,1736619062711,-1844.2,0.00011365,2]
[348559769,1736619062721,-798.21,0.00011365,2]
[348559770,1736619062731,-1185.69,0.00011365,2]
[348559771,1736619062742,-1000.0,0.00011365,2]
[348559772,1736619062752,-732.19,0.00011365,2]
[348559773,1736619062763,-1737.69,0.00011365,2]
[348559774,1736619062773,-1389.24,0.00011365,2]
[348559775,1736619062783,-153.0,0.00011368,2]
[348559776,1736619062793,-153.0,0.00011368,2]
[348559777,1736619062804,-153.0,0.00011368,2]
[348559778,1736619062815,-153.0,0.00011368,2]
[348559779,1736619062824,-153.0,0.00011368,2]
[348559780,1736619062834,-153.0,0.00011368,2]
[348559781,1736619062843,-153.0,0.00011368,2]
[348559782,1736619062853,-153.0,0.00011368,2]
[348559783,1736619062862,-153.0,0.00011368,2]
[348559784,1736619062871,-153.0,0.00011368,2]
[348559785,1736619062882,-153.0,0.00011368,2]
[348559786,1736619062891,-153.0,0.00011368,2]
[348559787,1736619062901,-153.0,0.00011368,2]
[348559788,1736619062911,-153.0,0.00011368,2]
[348559789,1736619062921,-153.0,0.00011368,2]
[348559790,1736619062930,-153.0,0.00011368,2]
[348559791,1736619062940,-153.0,0.00011368,2]
[348559792,1736619062949,-28233.29733898,0.00011384,2]
[348559793,1736619062959,-200.0,0.000114,2]
[348559794,1736619062968,-242.11776358,0.00011452,2]
[348559795,1736619062977,-217.85,0.0001149,2]
[348559796,1736619062986,-150.339,0.0001149,2]
[348559797,1736619062995,-2751.0,0.00011507,2]
[348559798,1736619063005,-500.0,0.00011536,2]
[348559799,1736619063014,-866.93,0.00011536,2]
[348559800,1736619063023,-500.0,0.00011537,2]
[348559801,1736619063033,-531.67,0.00011537,2]
[348559802,1736619063043,-500.0,0.00011537,2]
[348559803,1736619063052,-31.18485482,0.00011537,2]
[348559804,1736619063066,-468.81514518,0.00011537,2]
[348559805,1736619063076,-500.0,0.00011537,2]
[348559806,1736619063086,-500.0,0.00011537,2]
[348559807,1736619063096,-576.01,0.00011537,2]
[348559808,1736619063106,-500.0,0.00011537,2]
[348559809,1736619063115,-437.12015623,0.00011537,2]
[348559810,1736619063128,-119.72984377,0.00011537,2]
[348559811,1736619063137,-380.27015623,0.00011537,2]
[348559812,1736619063149,-122.59984377,0.00011537,2]
[348559813,1736619063158,-500.0,0.00011537,2]
[348559814,1736619063168,-682.71,0.00011537,2]
[348559815,1736619063178,-500.0,0.00011537,2]
[348559816,1736619063188,-637.68,0.00011537,2]
[348559817,1736619063197,-803.95,0.00011537,2]
[348559818,1736619063206,-748.35,0.00011537,2]
[348559819,1736619063215,-500.0,0.00011537,2]
[348559820,1736619063225,-182.57566121,0.00011537,2]
[348559821,1736619063239,-596.78433879,0.00011537,2]
[348559822,1736619063248,-500.0,0.00011537,2]
[348559823,1736619063258,-333.34,0.00011537,2]
[348559824,1736619063267,-500.0,0.00011537,2]
[348559825,1736619063276,-166.98,0.00011537,2]
[348559826,1736619063286,-305.73277029,0.00011537,2]
[348559827,1736619063297,-194.26722971,0.00011537,2]
[348559828,1736619063307,-500.0,0.00011537,2]
[348559829,1736619063317,-500.0,0.00011537,2]
[348559830,1736619063326,-500.0,0.00011537,2]
[348559831,1736619063336,-500.0,0.00011537,2]
[348559832,1736619063345,-500.0,0.00011537,2]
[348559833,1736619063355,-500.0,0.00011537,2]
[348559834,1736619063364,-500.0,0.00011537,2]
[348559835,1736619063374,-648.37,0.00011537,2]
[348559836,1736619063383,-627.57,0.00011537,2]
[348559837,1736619063392,-2483.68,0.00011537,2]
[348559838,1736619063401,-684.3,0.00011537,2]
[348559839,1736619063411,-1324.09,0.00011537,2]
[348559840,1736619063420,-500.0,0.00011537,2]
[348559841,1736619063429,-225.77058048,0.00011537,2]
[348559842,1736619063440,-360.82173846,0.00011537,2]
[348559843,1736619063455,-338.49943831,0.00011537,2]
[348559844,1736619063467,-1153.35824275,0.00011537,2]
[348559845,1736619063477,-154.122471,0.00011537,2]
[348559846,1736619063486,-333.74,0.00011537,2]
[348559847,1736619063495,-4975.13628625,0.00011537,2]
[348559848,1736619063507,-673.26999999,0.00011537,2]
[348559849,1736619063519,-240.11371376,0.00011537,2]
[348559850,1736619063528,-279.68628624,0.00011537,2]
[348559851,1736619063539,-220.31371376,0.00011537,2]
[348559852,1736619063549,-69.84628623,0.00011537,2]
[348559853,1736619063560,-368.5302207,0.00011537,2]
[348559854,1736619063572,-221.68349307,0.00011537,2]
[348559855,1736619063581,-113.65850693,0.00011537,2]
[348559856,1736619063593,-37.78381607,0.00011537,2]
[348559857,1736619063602,-500.0,0.00011537,2]
[348559858,1736619063611,-688.64,0.00011537,2]
[348559859,1736619063621,-1095.26,0.00011537,2]
[348559860,1736619063630,-711.99239717,0.00011537,2]
[348559861,1736619063641,-381.77760283,0.00011537,2]
[348559862,1736619063650,-129.09217167,0.00011537,2]
[348559863,1736619063661,-370.90782833,0.00011537,2]
[348559864,1736619063674,-500.0,0.00011537,2]
[348559865,1736619063684,-71.46183047,0.00011537,2]
[348559866,1736619064393,-500.0,9.892e-05,2]
[348559867,1736619064402,-25.438395,9.893e-05,2]
[348559868,1736619064414,-357.18,9.893e-05,2]
[348559869,1736619064426,-117.381605,9.893e-05,2]
[348559870,1736619064435,-312.358235,0.00010166,2]
[348559871,1736619064448,-187.641765,0.00010166,2]
[348559872,1736619064458,-100.628225,0.00010167,2]
[348559873,1736619064472,-399.371775,0.00010167,2]
[348559874,1736619064482,-500.0,0.00010266,2]
[348559875,1736619064491,-100.628225,0.00010266,2]
[348559876,1736619064720,-500.0,9.893e-05,2]
[348559877,1736619064730,-500.0,9.893e-05,2]
[348559878,1736619064739,-500.0,0.00010167,2]
[348559879,1736619064751,-315.4553963,0.00010266,2]
[348559880,1736619064766,-83.9163787,0.00010266,2]
[348559881,1736619064776,-393.0301277,0.00010266,2]
[348559882,1736619064795,-106.9698723,0.00010266,2]
[348559883,1736619064805,-249.7342119,0.00010266,2]
[348559884,1736619064817,-250.2657881,0.00010266,2]
[348559885,1736619064826,-496.07517594,0.00010266,2]
[348559886,1736619064837,-3.92482406,0.00010266,2]
[348559887,1736619064847,-500.0,0.0001044,2]
[348559888,1736619064856,-500.0,0.00010441,2]
[348559889,1736619064865,-500.0,0.00010441,2]
[348559890,1736619064874,-500.0,0.0001054,2]
[348559891,1736619064883,-500.0,0.0001054,2]
[348559892,1736619064893,-500.0,0.00010714,2]
[348559893,1736619064902,-500.0,0.00010715,2]
[348559894,1736619064912,-500.0,0.00010715,2]
[348559895,1736619064921,-500.0,0.00010814,2]
[348559896,1736619064930,-500.0,0.00010814,2]
[348559897,1736619064940,-569.59,0.00010989,2]
[348559898,1736619064949,-500.0,0.00011088,2]
[348559899,1736619064959,-500.0,0.00011088,2]
[348559900,1736619064968,-500.0,0.00011262,2]
[348559901,1736619064977,-500.0,0.00011362,2]
[348559902,1736619064987,-500.0,0.00011362,2]
[348559903,1736619064997,-500.0,0.00011536,2]
[348559904,1736619065006,-2767.74816953,0.00011537,2]
[348559905,1736619065016,-819.35,0.00011537,2]
[348559906,1736619065025,-500.0,0.00011537,2]
[348559907,1736619065034,-528.36,0.00011537,2]
[348559908,1736619065043,-376.68,0.00011537,2]
[348559909,1736619065052,-500.0,0.00011537,2]
[348559910,1736619065061,-2722.44,0.00011537,2]
[348559911,1736619065070,-3422.51,0.00011537,2]
[348559912,1736619065080,-521.17,0.00011537,2]
[348559913,1736619065089,-2853.6,0.00011537,2]
[348559914,1736619065099,-756.18,0.00011537,2]
[348559915,1736619065109,-338.34,0.00011537,2]
[348559916,1736619065118,-4668.96,0.00011537,2]
[348559917,1736619065128,-1489.31,0.00011537,2]
[348559918,1736619065137,-1114.26,0.00011537,2]
[348559919,1736619065147,-2806.0,0.00011537,2]
[348559920,1736619065156,-500.0,0.00011537,2]
[348559921,1736619065165,-598.85,0.00011537,2]
[348559922,1736619065175,-500.0,0.00011537,2]
[348559923,1736619065184,-937.47,0.00011537,2]
[348559924,1736619065193,-500.0,0.00011537,2]
[348559925,1736619065202,-503.9,0.00011537,2]
[348559926,1736619065212,-1399.84,0.00011537,2]
[348559927,1736619065221,-500.0,0.00011537,2]
[348559928,1736619065230,-3257.63,0.00011537,2]
[348559929,1736619065241,-500.0,0.00011537,2]
[348559930,1736619065251,-1522.45,0.00011537,2]
[348559931,1736619065260,-1746.42,0.00011537,2]
[348559932,1736619065269,-283.83182729,0.00011537,2]
[348559933,1736619065278,-500.0,0.00011537,2]
[348559934,1736619065287,-500.0,0.00011537,2]
[348559935,1736619065297,-1946.42,0.00011537,2]
[348559936,1736619065306,-500.0,0.00011537,2]
[348559937,1736619065315,-500.0,0.00011537,2]
[348559938,1736619065324,-876.48,0.00011537,2]
[348559939,1736619065333,-500.0,0.00011537,2]
[348559940,1736619065343,-827.89,0.00011537,2]
[348559941,1736619065353,-1292.29,0.00011537,2]
[348559942,1736619065363,-1143.37,0.00011537,2]
[348559943,1736619065372,-500.0,0.00011537,2]
[348559944,1736619065383,-500.0,0.00011537,2]
[348559945,1736619065394,-500.0,0.00011537,2]
[348559946,1736619065403,-242.11776358,0.00011555,2]
[348559947,1736619065412,-829.423,0.00011583,2]
[348559948,1736619065421,-566.0,0.00011583,2]
[348559949,1736619065431,-1854.692,0.00011583,2]
[348559950,1736619065440,-915.0,0.00011583,2]
[348559951,1736619065451,-1259.0,0.00011583,2]
[348559952,1736619065460,-820.0,0.00011583,2]
[348559953,1736619065475,-2944.0,0.00011583,2]
[348559954,1736619065484,-537.0,0.00011583,2]
[348559955,1736619065494,-3978.0,0.00011583,2]
[348559956,1736619065503,-150.0,0.00011583,2]
[348559957,1736619065514,-3896.0,0.00011583,2]
[348559958,1736619065523,-380.78,0.00011636,2]
[348559959,1736619065532,-500.0,0.00011636,2]
[348559960,1736619065541,-500.0,0.00011636,2]
[348559961,1736619065552,-436.10795023,0.00011636,2]
[348559962,1736619065563,-500.0,0.00011636,2]
[348559963,1736619065572,-500.0,0.00011636,2]
[348559964,1736619065581,-500.0,0.00011636,2]
[348559965,1736619065590,-500.0,0.00011636,2]
[348559966,1736619065599,-448.83087333,0.00011636,2]
[348559967,1736619065610,-500.0,0.00011636,2]
[348559968,1736619065620,-500.0,0.00011636,2]
[348559969,1736619065629,-500.0,0.00011636,2]
[348559970,1736619065638,-500.0,0.00011636,2]
[348559971,1736619065647,-266.63,0.00011636,2]
[348559972,1736619065657,-500.0,0.00011636,2]
[348559973,1736619065667,-1481.33,0.00011636,2]
[348559974,1736619065677,-500.0,0.00011636,2]
[348559975,1736619065686,-500.0,0.00011636,2]
[348559976,1736619065695,-500.0,0.00011636,2]
[348559977,1736619065703,-3066.26,0.00011636,2]
[348559978,1736619065714,-500.0,0.00011636,2]
[348559979,1736619065723,-500.0,0.00011636,2]
[348559980,1736619065732,-2302.27,0.00011636,2]
[348559981,1736619065744,-504.14,0.00011636,2]
[348559982,1736619065754,-500.0,0.00011636,2]
[348559983,1736619065764,-1618.77,0.00011636,2]
[348559984,1736619065773,-500.0,0.00011636,2]
[348559985,1736619065782,-500.0,0.00011636,2]
[348559986,1736619065791,-500.0,0.00011637,2]
[348559987,1736619065800,-500.0,0.00011637,2]
[348559988,1736619065809,-500.0,0.00011637,2]
[348559989,1736619065819,-500.0,0.00011637,2]